fUSD/lending_fUSD_20240802
["ID","MTS","AMOUNT","RATE_DAILY","PERIOD"]
[333905147,1722618656565,-151.0,0.0001863,2]
[333905148,1722618656574,-11216.22,0.0001863,2]
[333905149,1722618656583,-4580.92,0.0001863,2]
[333905150,1722618656593,-500.0,0.0001863,2]
[333905151,1722618656602,-151.0,0.0001863,2]
[333905152,1722618656611,-884.96,0.0001863,2]
[333905153,1722618656620,-151.0,0.0001863,2]
[333905154,1722618656630,-151.0,0.0001863,2]
[333905155,1722618656639,-1780.36,0.0001863,2]
[333905156,1722618656648,-2910.46,0.0001863,2]
[333905157,1722618656657,-151.0,0.0001863,2]
[333905158,1722618656667,-151.0,0.0001863,2]
[333905159,1722618656676,-151.0,0.0001863,2]
[333905160,1722618656685,-151.0,0.0001863,2]
[333905161,1722618656694,-151.0,0.0001863,2]
[333905162,1722618656703,-151.0,0.0001863,2]
[333905163,1722618656712,-151.0,0.0001863,2]
[333905164,1722618656722,-71443.44,0.0001863,2]
[333905165,1722618656732,-257.547162,0.0001863,2]
[333905166,1722618656744,-151.0,0.0001863,2]
[333905167,1722618656754,-295.14932,0.0001863,2]
[333905168,1722618656763,-500.0,0.0001863,2]
[333905169,1722618656772,-6328.16,0.0001863,2]
[333905170,1722618656781,-929.0,0.0001863,2]
[333905171,1722618656792,-5878.11,0.0001863,2]
[333905172,1722618656801,-500.0,0.0001863,2]
[333905173,1722618656811,-6790.87,0.0001863,2]
[333905174,1722618656821,-402.05764799,0.0001863,2]
[333905175,1722618656830,-4031.26,0.0001863,2]
[333905176,1722618656839,-1651.3,0.0001863,2]
[333905177,1722618656848,-2865.13,0.0001863,2]
[333905178,1722618656858,-4057.258688,0.0001863,2]
[333905179,1722618656867,-2165.97,0.0001863,2]
[333905180,1722618656876,-4057.258688,0.0001863,2]
[333905181,1722618656885,-500.0,0.0001863,2]
[333905182,1722618656895,-4057.258688,0.0001863,2]
[333905183,1722618656904,-4057.258688,0.0001863,2]
[333905184,1722618656914,-4057.258688,0.0001863,2]
[333905185,1722618656923,-969.03,0.0001863,2]
[333905186,1722618656933,-4057.258688,0.0001863,2]
[333905187,1722618656942,-4057.258688,0.0001863,2]
[333905188,1722618656951,-4057.258688,0.0001863,2]
[333905189,1722618656960,-4057.258688,0.0001863,2]
[333905190,1722618656970,-500.0,0.0001863,2]
[333905191,1722618656979,-500.0,0.0001863,2]
[333905192,1722618656990,-1796.07,0.0001863,2]
[333905193,1722618657000,-4057.258688,0.0001863,2]
[333905194,1722618657010,-500.0,0.0001863,2]
[333905195,1722618657021,-500.0,0.0001863,2]
[333905196,1722618657030,-4057.258688,0.0001863,2]
[333905197,1722618657040,-500.0,0.0001863,2]
[333905198,1722618657049,-4057.258688,0.0001863,2]
[333905199,1722618657063,-9742.52,0.0001863,2]
[333905200,1722618657073,-3938.34,0.0001863,2]
[333905201,1722618657083,-4057.258688,0.0001863,2]
[333905202,1722618657094,-500.0,0.0001863,2]
[333905203,1722618657104,-500.0,0.0001863,2]
[333905204,1722618657113,-4057.258688,0.0001863,2]
[333905205,1722618657123,-500.0,0.0001863,2]
[333905206,1722618657133,-500.0,0.0001863,2]
[333905207,1722618657143,-4057.258688,0.0001863,2]
[333905208,1722618657152,-500.0,0.0001863,2]
[333905209,1722618657162,-6215.46,0.0001863,2]
[333905210,1722618657171,-500.0,0.0001863,2]
[333905211,1722618657183,-4057.258688,0.0001863,2]
[333905212,1722618657193,-1390.4,0.0001863,2]
[333905213,1722618657203,-4057.258688,0.0001863,2]
[333905214,1722618657212,-4922.63,0.0001863,2]
[333905215,1722618657222,-2664.78,0.0001863,2]
[333905216,1722618657232,-4057.258688,0.0001863,2]
[333905217,1722618657244,-11882.61,0.0001863,2]
[333905218,1722618657254,-1655.23,0.0001863,2]
[333905219,1722618657263,-500.0,0.0001863,2]
[333905220,1722618657273,-8310.28,0.0001863,2]
[333905221,1722618657282,-3221.15,0.0001863,2]
[333905222,1722618657292,-2803.49,0.0001863,2]
[333905223,1722618657301,-928.01,0.0001863,2]
[333905224,1722618657311,-1399.54,0.0001863,2]
[333905225,1722618657321,-559.78,0.0001863,2]
[333905226,1722618657330,-500.0,0.0001863,2]
[333905227,1722618657340,-500.0,0.0001863,2]
[333905228,1722618657350,-3969.19,0.0001863,2]
[333905229,1722618657364,-1622.92,0.0001863,2]
[333905230,1722618657374,-3855.18,0.0001863,2]
[333905231,1722618657384,-1732.72,0.0001863,2]
[333905232,1722618657395,-1650.18,0.0001863,2]
[333905233,1722618657404,-500.0,0.0001863,2]
[333905234,1722618657414,-5548.42,0.0001863,2]
[333905235,1722618657423,-1800.44,0.0001863,2]
[333905236,1722618657435,-943.26,0.0001863,2]
[333905237,1722618657445,-509.46,0.0001863,2]
[333905238,1722618657456,-763.37,0.0001863,2]
[333905239,1722618657466,-2861.47,0.0001863,2]
[333905240,1722618657475,-500.0,0.0001863,2]
[333905241,1722618657486,-5239.64,0.0001863,2]
[333905242,1722618657496,-500.0,0.0001863,2]
[333905243,1722618657505,-809.3,0.0001863,2]
[333905244,1722618657514,-1379.36,0.0001863,2]
[333905245,1722618657524,-1380.13,0.0001863,2]
[333905246,1722618657534,-1636.57,0.0001863,2]
[333905247,1722618657543,-192.476989,0.0001863,2]
[333905248,1722618657552,-691.27,0.0001863,2]
[333905249,1722618657561,-500.0,0.0001863,2]
[333905250,1722618657571,-192.476989,0.0001863,2]
[333905251,1722618657580,-192.476989,0.0001863,2]
[333905252,1722618657590,-192.476989,0.0001863,2]
[333905253,1722618657600,-3216.71,0.0001863,2]
[333905254,1722618657609,-151.0,0.0001863,2]
[333905255,1722618657619,-192.476989,0.0001863,2]
[333905256,1722618657628,-151.0,0.0001863,2]
[333905257,1722618657638,-192.476989,0.0001863,2]
[333905258,1722618657647,-151.0,0.0001863,2]
[333905259,1722618657657,-500.0,0.0001863,2]
[333905260,1722618657667,-192.476989,0.0001863,2]
[333905261,1722618657677,-151.0,0.0001863,2]
[333905262,1722618657687,-500.0,0.0001863,2]
[333905263,1722618657696,-192.476989,0.0001863,2]
[333905264,1722618657707,-151.0,0.0001863,2]
[333905265,1722618657718,-192.476989,0.0001863,2]
[333905266,1722618657728,-151.0,0.0001863,2]
[333905267,1722618657739,-2263.68,0.0001863,2]
[333905268,1722618657748,-151.0,0.0001863,2]
[333905269,1722618657757,-1523.15,0.0001863,2]
[333905270,1722618657767,-680.67,0.0001863,2]
[333905271,1722618657776,-192.476989,0.0001863,2]
[333905272,1722618657785,-5255.36,0.0001863,2]
[333905273,1722618657794,-151.0,0.0001863,2]
[333905274,1722618657803,-192.476989,0.0001863,2]
[333905275,1722618657813,-689.09,0.0001863,2]
[333905276,1722618657822,-500.0,0.0001863,2]
[333905277,1722618657832,-192.476989,0.0001863,2]
[333905278,1722618657841,-500.0,0.0001863,2]
[333905279,1722618657851,-192.476989,0.0001863,2]
[333905280,1722618657860,-192.476989,0.0001863,2]
[333905281,1722618657869,-192.476989,0.0001863,2]
[333905282,1722618657878,-3548.12,0.0001863,2]
[333905283,1722618657887,-30578.87,0.0001863,2]
[333905284,1722618657897,-628.33,0.0001863,2]
[333905285,1722618657906,-192.476989,0.0001863,2]
[333905286,1722618657915,-192.476989,0.0001863,2]
[333905287,1722618657924,-192.476989,0.0001863,2]
[333905288,1722618657934,-151.0,0.0001863,2]
[333905289,1722618657943,-500.0,0.0001863,2]
[333905290,1722618657952,-500.0,0.0001863,2]
[333905291,1722618657962,-151.0,0.0001863,2]
[333905292,1722618657971,-151.0,0.0001863,2]
[333905293,1722618657980,-151.0,0.0001863,2]
[333905294,1722618657991,-895.61,0.0001863,2]
[333905295,1722618658000,-500.0,0.0001863,2]
[333905296,1722618658009,-151.0,0.0001863,2]
[333905297,1722618658019,-151.0,0.0001863,2]
[333905298,1722618658030,-500.0,0.0001863,2]
[333905299,1722618658040,-151.0,0.0001863,2]
[333905300,1722618658051,-500.0,0.0001863,2]
[333905301,1722618658060,-500.0,0.0001863,2]
[333905302,1722618658069,-500.0,0.0001863,2]
[333905303,1722618658078,-151.0,0.0001863,2]
[333905304,1722618658087,-151.0,0.0001863,2]
[333905305,1722618658095,-504.544389,0.0001863,2]
[333905306,1722618658105,-151.0,0.0001863,2]
[333905307,1722618658114,-11054.23,0.0001863,2]
[333905308,1722618658123,-151.0,0.0001863,2]
[333905309,1722618658132,-8586.25,0.0001863,2]
[333905310,1722618658142,-500.0,0.0001863,2]
[333905311,1722618658151,-151.0,0.0001863,2]
[333905312,1722618658160,-1505.43,0.0001863,2]
[333905313,1722618658170,-500.0,0.0001863,2]
[333905314,1722618658180,-242.566115,0.0001863,2]
[333905315,1722618658189,-2505.09,0.0001863,2]
[333905316,1722618658198,-151.0,0.0001863,2]
[333905317,1722618658208,-10581.0,0.0001863,2]
[333905318,1722618658218,-209.298801,0.0001863,2]
[333905319,1722618658227,-1321.98,0.0001863,2]
[333905320,1722618658237,-1795.01,0.0001863,2]
[333905321,1722618658246,-500.0,0.0001863,2]
[333905322,1722618658256,-2520.15,0.0001863,2]
[333905323,1722618658266,-3586.22,0.0001863,2]
[333905324,1722618658275,-2169.04,0.0001863,2]
[333905325,1722618658284,-781.29,0.0001863,2]
[333905326,1722618658294,-2014.57,0.0001863,2]
[333905327,1722618658303,-500.0,0.0001863,2]
[333905328,1722618658313,-500.0,0.0001863,2]
[333905329,1722618658323,-500.0,0.0001863,2]
[333905330,1722618658333,-682.93,0.0001863,2]
[333905331,1722618658342,-1053.292819,0.0001863,2]
[333905332,1722618658354,-3988.46,0.0001863,2]
[333905333,1722618658367,-1053.292819,0.0001863,2]
[333905334,1722618658376,-500.0,0.0001863,2]
[333905335,1722618658387,-1053.292819,0.0001863,2]
[333905336,1722618658398,-3914.41,0.0001863,2]
[333905337,1722618658408,-1428.55,0.0001863,2]
[333905338,1722618658417,-1053.292819,0.0001863,2]
[333905339,1722618658427,-1053.292819,0.0001863,2]
[333905340,1722618658441,-17641.56,0.0001863,2]
[333905341,1722618658453,-936.64,0.0001863,2]
[333905342,1722618658464,-1053.292819,0.0001863,2]
[333905343,1722618658474,-171.520274,0.0001863,2]
[333905344,1722618658487,-33392.73,0.0001863,2]
[333905345,1722618658496,-1053.292819,0.0001863,2]
[333905346,1722618658506,-171.520274,0.0001863,2]
[333905347,1722618658516,-967.97,0.0001863,2]
[333905348,1722618658526,-1053.292819,0.0001863,2]
[333905349,1722618658545,-2004.32,0.0001863,2]
[333905350,1722618658563,-171.520274,0.0001863,2]
[333905351,1722618658582,-171.520274,0.0001863,2]
[333905352,1722618658595,-171.520274,0.0001863,2]
[333905353,1722618658607,-171.520274,0.0001863,2]
[333905354,1722618658616,-171.520274,0.0001863,2]
[333905355,1722618658625,-750.46,0.0001863,2]
[333905356,1722618658635,-171.520274,0.0001863,2]
[333905357,1722618658644,-7432.92,0.0001863,2]
[333905358,1722618658653,-171.520274,0.0001863,2]
[333905359,1722618658663,-571.56,0.0001863,2]
[333905360,1722618658672,-171.520274,0.0001863,2]
[333905361,1722618658681,-171.520274,0.0001863,2]
[333905362,1722618658690,-171.520274,0.0001863,2]
[333905363,1722618658700,-1053.292819,0.0001863,2]
[333905364,1722618658709,-500.0,0.0001863,2]
[333905365,1722618658718,-171.520274,0.0001863,2]
[333905366,1722618658729,-12249.46,0.0001863,2]
[333905367,1722618658739,-500.0,0.0001863,2]
[333905368,1722618658749,-171.520274,0.0001863,2]
[333905369,1722618658758,-1053.292819,0.0001863,2]
[333905370,1722618658768,-151.0,0.0001863,2]
[333905371,1722618658777,-171.520274,0.0001863,2]
[333905372,1722618658787,-1053.292819,0.0001863,2]
[333905373,1722618658796,-1053.292819,0.0001863,2]
[333905374,1722618658805,-151.0,0.0001863,2]
[333905375,1722618658814,-171.520274,0.0001863,2]
[333905376,1722618658823,-151.0,0.0001863,2]
[333905377,1722618658832,-171.520274,0.0001863,2]
[333905378,1722618658842,-1053.292819,0.0001863,2]
[333905379,1722618658851,-299.1442,0.0001863,2]
[333905380,1722618658859,-171.520274,0.0001863,2]
[333905381,1722618658869,-2922.7,0.0001863,2]
[333905382,1722618658878,-1053.292819,0.0001863,2]
[333905383,1722618658887,-637.34,0.0001863,2]
[333905384,1722618658897,-1053.292819,0.0001863,2]
[333905385,1722618658906,-981.59,0.0001863,2]
[333905386,1722618658916,-1053.292819,0.0001863,2]
[333905387,1722618658925,-1053.292819,0.0001863,2]
[333905388,1722618658934,-1053.292819,0.0001863,2]
[333905389,1722618658943,-500.0,0.0001863,2]
[333905390,1722618658953,-2257.81,0.0001863,2]
[333905391,1722618658962,-538.65641587,0.0001863,2]
[333905392,1722618659009,-724.14434613,0.0001863,2]
[333905393,1722618659019,-500.0,0.0001863,2]
[333905394,1722618659028,-1262.800762,0.0001863,2]
[333905395,1722618659037,-681.58506449,0.0001863,2]
[333905396,1722618659945,-3567.11591837,0.00018629,2]
[333905397,1722618659956,-139.25683632,0.00018629,2]
[333905398,1722618659967,-360.74316368,0.0001863,2]
[333905399,1722618659983,-220.47253383,0.0001863,2]
[333905400,1722618659993,-1262.800762,0.0001863,2]
[333905401,1722618660003,-102.29483682,0.0001863,2]
[333905402,1722618660015,-1098.36063851,0.0001863,2]
[333905403,1722618660026,-62.14528667,0.0001863,2]
[333905404,1722618660035,-228.01380011,0.0001863,2]
[333905405,1722618660056,-1034.78696189,0.0001863,2]
[333905406,1722618660066,-500.0,0.0001863,2]
[333905407,1722618660076,-151.0,0.0001863,2]
[333905408,1722618660085,-1262.800762,0.0001863,2]
[333905409,1722618660095,-151.0,0.0001863,2]
[333905410,1722618660104,-1617.13,0.0001863,2]
[333905411,1722618660114,-1262.800762,0.0001863,2]
[333905412,1722618660123,-4039.57783634,0.0001863,2]
[333905413,1722618660135,-600.0,0.0001863,2]
[333905414,1722618660146,-258.90026698,0.0001863,2]
[333905415,1722618660157,-735.23189668,0.0001863,2]
[333905416,1722618660167,-230.48038935,0.0001863,2]
[333905417,1722618660183,-7.44583865,0.0001863,2]
[333905418,1722618660192,-1000.0,0.0001863,2]
[333905419,1722618660202,-1262.800762,0.0001863,2]
[333905420,1722618660211,-1262.800762,0.0001863,2]
[333905421,1722618660220,-1262.800762,0.0001863,2]
[333905422,1722618660230,-31.64302534,0.0001863,2]
[333905423,1722618660261,-1231.15773666,0.0001863,2]
[333905424,1722618660271,-574.99,0.0001863,2]
[333905425,1722618660281,-1262.800762,0.0001863,2]
[333905426,1722618660292,-500.0,0.0001863,2]
[333905427,1722618660302,-1262.800762,0.0001863,2]
[333905428,1722618660312,-676.38,0.0001863,2]
[333905429,1722618660321,-1262.800762,0.0001863,2]
[333905430,1722618660331,-126.6969575,0.0001863,2]
[333905431,1722618660343,-373.3030425,0.0001863,2]
[333905432,1722618660353,-641.4719575,0.0001863,2]
[333905433,1722618660368,-1096.3480425,0.0001863,2]
[333905434,1722618660377,-1262.800762,0.0001863,2]
[333905435,1722618660387,-1529.65,0.0001863,2]
[333905436,1722618660397,-1262.800762,0.0001863,2]
[333905437,1722618660407,-500.0,0.0001863,2]
[333905438,1722618660416,-1262.800762,0.0001863,2]
[333905439,1722618660426,-276.10036699,0.0001863,2]
[333905440,1722618660439,-500.0,0.0001863,2]
[333905441,1722618660448,-3788.04,0.0001863,2]
[333905442,1722618660457,-174.71193203,0.0001863,2]
[333905443,1722618660467,-151.0,0.0001863,2]
[333905444,1722618660476,-6956.33,0.0001863,2]
[333905445,1722618660486,-12901.79,0.0001863,2]
[333905446,1722618660496,-6967.79,0.0001863,2]
[333905447,1722618660506,-151.0,0.0001863,2]
[333905448,1722618660516,-151.0,0.0001863,2]
[333905449,1722618660525,-151.0,0.0001863,2]
[333905450,1722618660535,-151.0,0.0001863,2]
[333905451,1722618660544,-151.0,0.0001863,2]
[333905452,1722618660553,-151.0,0.0001863,2]
[333905453,1722618660563,-151.0,0.0001863,2]
[333905454,1722618660573,-151.0,0.0001863,2]
[333905455,1722618660582,-151.0,0.0001863,2]
[333905456,1722618660592,-1093.92,0.0001863,2]
[333905457,1722618660601,-3144.79,0.0001863,2]
[333905458,1722618660610,-151.0,0.0001863,2]
[333905459,1722618660619,-151.0,0.0001863,2]
[333905460,1722618660629,-581.6,0.0001863,2]
[333905461,1722618660638,-151.0,0.0001863,2]
[333905462,1722618660647,-151.0,0.0001863,2]
[333905463,1722618660656,-151.0,0.0001863,2]
[333905464,1722618660665,-151.0,0.0001863,2]
[333905465,1722618660674,-151.0,0.0001863,2]
[333905466,1722618660683,-151.0,0.0001863,2]
[333905467,1722618660693,-151.0,0.0001863,2]
[333905468,1722618660702,-812.51,0.0001863,2]
[333905469,1722618660711,-151.0,0.0001863,2]
[333905470,1722618660720,-151.0,0.0001863,2]
[333905471,1722618660730,-151.0,0.0001863,2]
[333905472,1722618660739,-2382.65,0.0001863,2]
[333905473,1722618660749,-1322.46,0.0001863,2]
[333905474,1722618660758,-258.082236,0.0001863,2]
[333905475,1722618660768,-576.26,0.0001863,2]
[333905476,1722618660778,-500.0,0.0001863,2]
[333905477,1722618660787,-5140.66,0.0001863,2]
[333905478,1722618660797,-500.0,0.0001863,2]
[333905479,1722618660806,-3139.73,0.0001863,2]
[333905480,1722618660816,-151.0,0.0001863,2]
[333905481,1722618660825,-520.95,0.0001863,2]
[333905482,1722618660834,-151.0,0.0001863,2]
[333905483,1722618660844,-4050.81,0.0001863,2]
[333905484,1722618660854,-2972.83,0.0001863,2]
[333905485,1722618660865,-5754.02,0.0001863,2]
[333905486,1722618660874,-601.95,0.0001863,2]
[333905487,1722618660885,-500.0,0.0001863,2]
[333905488,1722618660894,-4336.41,0.0001863,2]
[333905489,1722618660904,-1226.95,0.0001863,2]
[333905490,1722618660915,-4917.79,0.0001863,2]
[333905491,1722618660924,-586.85,0.0001863,2]
[333905492,1722618660934,-151.0,0.0001863,2]
[333905493,1722618660944,-394.57495621,0.0001863,2]
[333905494,1722618660954,-151.0,0.0001863,2]
[333905495,1722618660964,-151.0,0.0001863,2]
[333905496,1722618660974,-151.0,0.0001863,2]
[333905497,1722618660984,-500.0,0.0001863,2]
[333905498,1722618660997,-151.0,0.0001863,2]
[333905499,1722618661006,-913.79,0.0001863,2]
[333905500,1722618661016,-500.0,0.0001863,2]
[333905501,1722618661025,-151.0,0.0001863,2]
[333905502,1722618661035,-1310.85,0.0001863,2]
[333905503,1722618661045,-151.0,0.0001863,2]
[333905504,1722618661055,-151.0,0.0001863,2]
[333905505,1722618661065,-151.36556,0.0001863,2]
[333905506,1722618661075,-1564.73,0.0001863,2]
[333905507,1722618661084,-3640.85,0.0001863,2]
[333905508,1722618661095,-946.37,0.0001863,2]
[333905509,1722618661104,-500.0,0.0001863,2]
[333905510,1722618661113,-8747.32,0.0001863,2]
[333905511,1722618661123,-4861.18,0.0001863,2]
[333905512,1722618661133,-7542.08,0.0001863,2]
[333905513,1722618661143,-3065.7,0.0001863,2]
[333905514,1722618661153,-758.49,0.0001863,2]
[333905515,1722618661163,-4120.26,0.0001863,2]
[333905516,1722618661172,-500.0,0.0001863,2]
[333905517,1722618661182,-3950.44,0.0001863,2]
[333905518,1722618661192,-1774.98,0.0001863,2]
[333905519,1722618661202,-1723.43,0.0001863,2]
[333905520,1722618661211,-2971.71,0.0001863,2]
[333905521,1722618661221,-7332.09,0.0001863,2]
[333905522,1722618661231,-3830.93,0.0001863,2]
[333905523,1722618661245,-500.0,0.0001863,2]
[333905524,1722618661255,-1033.65,0.0001863,2]
[333905525,1722618661265,-500.0,0.0001863,2]
[333905526,1722618661275,-218.048106,0.0001863,2]
[333905527,1722618661284,-218.048106,0.0001863,2]
[333905528,1722618661294,-218.048106,0.0001863,2]
[333905529,1722618661304,-218.048106,0.0001863,2]
[333905530,1722618661315,-218.048106,0.0001863,2]
[333905531,1722618661325,-218.048106,0.0001863,2]
[333905532,1722618661334,-218.048106,0.0001863,2]
[333905533,1722618661343,-218.048106,0.0001863,2]
[333905534,1722618661354,-218.048106,0.0001863,2]
[333905535,1722618661368,-500.0,0.0001863,2]
[333905536,1722618661377,-500.0,0.0001863,2]
[333905537,1722618661387,-218.048106,0.0001863,2]
[333905538,1722618661397,-218.048106,0.0001863,2]
[333905539,1722618661407,-471.57,0.0001863,2]
[333905540,1722618661416,-218.048106,0.0001863,2]
[333905541,1722618661811,-218.048106,0.0001863,2]
[333905542,1722618661821,-218.048106,0.0001863,2]
[333905543,1722618661830,-2300.34,0.0001863,2]
[333905544,1722618661839,-218.048106,0.0001863,2]
[333905545,1722618661849,-500.0,0.0001863,2]
[333905546,1722618661858,-218.048106,0.0001863,2]
[333905547,1722618661869,-4101.81,0.0001863,2]
[333905548,1722618661878,-500.0,0.0001863,2]
[333905549,1722618661888,-218.048106,0.0001863,2]
[333905550,1722618661897,-1138.44,0.0001863,2]
[333905551,1722618661907,-1419.26,0.0001863,2]
[333905552,1722618661916,-218.048106,0.0001863,2]
[333905553,1722618661925,-500.0,0.0001863,2]
[333905554,1722618661934,-587.6,0.0001863,2]
[333905555,1722618661944,-151.0,0.0001863,2]
[333905556,1722618661953,-10337.12,0.0001863,2]
[333905557,1722618661962,-151.0,0.0001863,2]
[333905558,1722618661971,-151.0,0.0001863,2]
[333905559,1722618661980,-464.02988,0.0001863,2]
[333905560,1722618661992,-7499.58,0.0001863,2]
[333905561,1722618662001,-500.0,0.0001863,2]
[333905562,1722618662011,-151.0,0.0001863,2]
[333905563,1722618662020,-464.02988,0.0001863,2]
[333905564,1722618662029,-151.0,0.0001863,2]
[333905565,1722618662039,-3397.25,0.0001863,2]
[333905566,1722618662048,-464.02988,0.0001863,2]
[333905567,1722618662057,-1745.55,0.0001863,2]
[333905568,1722618662067,-151.0,0.0001863,2]
[333905569,1722618662076,-464.02988,0.0001863,2]
[333905570,1722618662085,-151.0,0.0001863,2]
[333905571,1722618662094,-151.0,0.0001863,2]
[333905572,1722618662104,-464.02988,0.0001863,2]
[333905573,1722618662113,-746.6,0.0001863,2]
[333905574,1722618662122,-464.02988,0.0001863,2]
[333905575,1722618662132,-464.02988,0.0001863,2]
[333905576,1722618662141,-464.02988,0.0001863,2]
[333905577,1722618662151,-464.02988,0.0001863,2]
[333905578,1722618662160,-798.22,0.0001863,2]
[333905579,1722618662170,-500.0,0.0001863,2]
[333905580,1722618662180,-528.38,0.0001863,2]
[333905581,1722618662189,-4925.15,0.0001863,2]
[333905582,1722618662199,-464.02988,0.0001863,2]
[333905583,1722618662208,-4708.33,0.0001863,2]
[333905584,1722618662218,-2354.14,0.0001863,2]
[333905585,1722618662228,-464.02988,0.0001863,2]
[333905586,1722618662237,-464.02988,0.0001863,2]
[333905587,1722618662250,-500.0,0.0001863,2]
[333905588,1722618662260,-464.02988,0.0001863,2]
[333905589,1722618662270,-618.25,0.0001863,2]
[333905590,1722618662280,-5620.42,0.0001863,2]
[333905591,1722618662289,-6139.78,0.0001863,2]
[333905592,1722618662299,-464.02988,0.0001863,2]
[333905593,1722618662309,-464.02988,0.0001863,2]
[333905594,1722618662318,-1055.83,0.0001863,2]
[333905595,1722618662328,-464.02988,0.0001863,2]
[333905596,1722618662337,-464.02988,0.0001863,2]
[333905597,1722618662347,-464.02988,0.0001863,2]
[333905598,1722618662358,-500.0,0.0001863,2]
[333905599,1722618662369,-6736.77,0.0001863,2]
[333905600,1722618662379,-500.0,0.0001863,2]
[333905601,1722618662388,-500.0,0.0001863,2]
[333905602,1722618662399,-1065.65,0.0001863,2]
[333905603,1722618662408,-151.0,0.0001863,2]
[333905604,1722618662418,-1691.08,0.0001863,2]
[333905605,1722618662429,-151.0,0.0001863,2]
[333905606,1722618662440,-500.0,0.0001863,2]
[333905607,1722618662450,-20467.68,0.0001863,2]
[333905608,1722618662460,-151.0,0.0001863,2]
[333905609,1722618662469,-151.0,0.0001863,2]
[333905610,1722618662479,-713.21,0.0001863,2]
[333905611,1722618662488,-2001.2,0.0001863,2]
[333905612,1722618662501,-151.0,0.0001863,2]
[333905613,1722618662511,-500.0,0.0001863,2]
[333905614,1722618662520,-151.0,0.0001863,2]
[333905615,1722618662530,-151.0,0.0001863,2]
[333905616,1722618662539,-151.0,0.0001863,2]
[333905617,1722618662549,-151.0,0.0001863,2]
[333905618,1722618662558,-577.2,0.0001863,2]
[333905619,1722618662567,-186.87558,0.0001863,2]
[333905620,1722618662577,-335.5809987,0.0001863,2]
[333905621,1722618662587,-500.0,0.0001863,2]
[333905622,1722618662596,-6263.7,0.0001863,2]
[333905623,1722618662605,-1258.0,0.0001863,2]
[333905624,1722618662614,-900.0,0.0001863,2]
[333905625,1722618662624,-900.0,0.0001863,2]
[333905626,1722618662633,-900.0,0.0001863,2]
[333905627,1722618662642,-1183.46,0.0001863,2]
[333905628,1722618662652,-900.0,0.0001863,2]
[333905629,1722618662661,-900.0,0.0001863,2]
[333905630,1722618662671,-2868.56,0.0001863,2]
[333905631,1722618662680,-900.0,0.0001863,2]
[333905632,1722618662690,-900.0,0.0001863,2]
[333905633,1722618662700,-900.0,0.0001863,2]
[333905634,1722618662709,-900.0,0.0001863,2]
[333905635,1722618662720,-561.02,0.0001863,2]
[333905636,1722618662729,-9342.03,0.0001863,2]
[333905637,1722618662742,-500.0,0.0001863,2]
[333905638,1722618662751,-500.0,0.0001863,2]
[333905639,1722618662760,-1160.0,0.0001863,2]
[333905640,1722618662769,-500.0,0.0001863,2]
[333905641,1722618662778,-900.0,0.0001863,2]
[333905642,1722618662787,-900.0,0.0001863,2]
[333905643,1722618662796,-900.0,0.0001863,2]
[333905644,1722618662806,-1141.4,0.0001863,2]
[333905645,1722618662815,-900.0,0.0001863,2]
[333905646,1722618662825,-500.0,0.0001863,2]